Cogmind - Beta 15 @@@ ROGUE MODE // 2025.08.03 @ 11:03:55 Player: Plexion Result: Destroyed by S-27 Virus with Autogun Performance ------------- Evolutions (3) 1500 Regions Visited (12) 2400 Robots Destroyed (187) 935 Value Destroyed (6520) 6520 Prototype IDs (19) 380 Alien Tech Used (0) 0 Bonus (2617) 2617 TOTAL SCORE: 14352 Bonus ------- High Alert Combat Kills 490 Follower Combat Kills 27 Entered Garrisons 600 Used RIF Installer 1500 Cogmind --------- Core Integrity 0/700 Matter 14/300 Energy 100/100 System Corruption 2% Temperature Cool (0) Movement Core (100) Ox1 Location -7/Garrison Parts ------- > --- POWER (1) -------- (None) > --- PROPULSION (4) --- Combat Antigrav System Combat Antigrav System > --- UTILITY (6) ------ Experimental Targeting Computer Relay Coupler [Grunt] (4) > --- WEAPON (2) ------- Great Axe > --- INVENTORY (5) ---- Experimental Sensor Array System Mapper ME-RLN's Wand Peak State ------------ > --- POWER ------------ Micro Nuclear Core > --- PROPULSION ------- Gravmag Array Cooled Antigrav System Combat Antigrav System > --- UTILITY ---------- Large Storage Unit Experimental Sensor Array Improved Signal Interpreter Experimental Targeting Computer Relay Coupler [NC] Relay Coupler [Grunt] > --- WEAPON ----------- 8R-AWN's Boregun 8R-AWN's Boregun > --- INVENTORY -------- Combat Antigrav System Combat Antigrav System Combat Antigrav System Improved Cooling System Experimental Energy Well Seismic Detector System Mapper Relay Coupler [Sentry] Thief Drone Bay Improved Arc Thrower Improved Arc Thrower Heavy Plasma Cannon Heavy Missile Launcher ME-RLN's Wand Great Axe [Rating: 83] Favorites ----------- Power Reinforced Fission Core Engine Ion Engine Power Core Reinforced Fission Core Reactor Cooled Antimatter Reactor Propulsion Light Treads Treads Light Treads Wheel Compact Wheel Hover Unit Combat Antigrav System Utility Seismic Detector Device Seismic Detector Storage Huge Storage Unit Processor Improved Targeting Computer Hackware Hacking Suite Protection Reactive Plating Weapon Advanced Beam Cannon Energy Gun Improved Arc Thrower Energy Cannon Advanced Beam Cannon Ballistic Gun Improved Assault Rifle Ballistic Cannon Light Cannon Launcher Heavy Missile Launcher Special Weapon ME-RLN's Wand Impact Weapon Heavy Mace Slashing Weapon Ripper Build | -11 -10 -10 -9 -9 -9 -8 -8 -8 -8 -8 -7 -7 ------- Run | Yrd Mat Min Mat Min Exi Min Mat Gar Mat Gar Fac Gar Slots Evolved 6 | . . . 2 . . . 2 . . . 2 . Power . | . . . . . . . . . . . . . Propulsion 2 | . . . 1 . . . 1 . . . . . Utility 4 | . . . 1 . . . 1 . . . 2 . Weapon . | . . . . . . . . . . . . . Parts Attached 136 | 7 9 1 12 . 15 9 27 3 16 16 19 2 Power 6 | 1 . . 1 . 2 . . . . 1 1 . Engine 2 | 1 . . 1 . . . . . . . . . Core 2 | . . . . . 1 . . . . . 1 . Reactor 2 | . . . . . 1 . . . . 1 . . Propulsion 44 | 2 2 . 2 . 1 3 12 3 8 7 2 2 Treads 34 | 2 1 . 1 . 1 2 9 3 8 7 . . Leg . | . . . . . . . . . . . . . Wheel 5 | . 1 . 1 . . . 3 . . . . . Hover 5 | . . . . . . 1 . . . . 2 2 Flight . | . . . . . . . . . . . . . Utility 48 | 2 2 1 3 . 6 2 11 . 5 4 12 . Device 15 | 1 . 1 1 . 4 1 4 . 1 2 . . Storage 7 | 1 2 . . . 1 1 1 . . . 1 . Processor 3 | . . . 1 . . . . . . . 2 . Hackware 10 | . . . . . . . 1 . 1 1 7 . Protection 13 | . . . 1 . 1 . 5 . 3 1 2 . Artifact . | . . . . . . . . . . . . . Weapon 38 | 2 5 . 6 . 6 4 4 . 3 4 4 . Energy Gun 6 | . 2 . 1 . . 1 . . 1 . 1 . Energy Cannon 7 | . . . . . . . 2 . 1 4 . . Ballistic Gun 11 | 2 . . 3 . 3 1 . . . . 2 . Ballistic Cannon 5 | . 2 . . . 1 . 2 . . . . . Launcher 5 | . 1 . 1 . 1 1 . . 1 . . . Special Weapon 1 | . . . . . . 1 . . . . . . Impact Weapon 1 | . . . 1 . . . . . . . . . Slashing Weapon 2 | . . . . . 1 . . . . . 1 . Piercing Weapon . | . . . . . . . . . . . . . Special Melee Weapon . | . . . . . . . . . . . . . Unidentified Prototypes 17 | . . 1 2 . 6 4 1 . 2 . 1 . Parts Lost 30 | . 1 . . . 2 2 3 1 2 7 2 10 Power 2 | . . . . . . . . . . 1 . 1 Propulsion 13 | . . . . . 1 1 3 1 . 4 . 3 Utility 9 | . . . . . 1 1 . . 1 2 1 3 Weapon 6 | . 1 . . . . . . . 1 . 1 3 Highest Loss Streak 9 | . 1 . . . 1 2 2 1 1 4 1 9 To Critical Strikes . | . . . . . . . . . . . . . Average Backups 19 | 2 7 12 16 19 18 18 23 23 23 23 14 12 Power . | . 1 1 . . 1 . 1 1 1 . . . Propulsion 3 | 1 2 3 3 5 5 3 3 3 3 3 . 3 Utility 7 | . . 1 4 5 4 7 10 10 10 12 8 5 Weapon 6 | . 3 7 8 9 7 7 7 7 7 6 4 3 Tool/Special . | . . . . . . . . . . . . . Unused Backups 20 | . . . 2 1 8 1 2 1 1 . . 4 Power 3 | . . . . . 3 . . . . . . . Propulsion 6 | . . . . . 3 . . . 1 . . 2 Utility 6 | . . . . . 2 1 1 . . . . 2 Weapon 5 | . . . 2 1 . . 1 1 . . . . Tool/Special . | . . . . . . . . . . . . . Average Slot Usage (%) 96 | . 96 99 90 100 90 98 98 100 99 97 90 75 Engine 4 | . 14 14 11 11 10 . . . . . . . Core 4 | . . . . . . 11 9 9 9 4 6 4 Treads 28 | . 25 28 26 33 30 32 28 36 36 34 . . Wheel 1 | . 2 . 3 . 2 . 6 . . . . . Hover 2 | . . . . . . . . . . . 22 19 Device 10 | . 14 13 10 10 6 21 7 9 10 14 5 2 Storage 10 | . 11 14 11 11 11 11 9 9 9 9 7 8 Processor 2 | . . . 5 11 1 . . . . . 12 7 Hackware 4 | . . . . . . . 8 9 7 . 15 13 Protection 6 | . . . 1 . 12 . 11 9 9 12 1 5 Energy Cannon 6 | . . . . . . . 6 18 16 17 . . Ballistic Gun 5 | . 18 . 7 22 6 17 1 . . . 10 1 Ballistic Cannon 5 | . 4 27 13 . . . 9 . . . . . Slashing Weapon 1 | . . . . . 6 2 . . . . 2 1 Peak Build Rating 83 | 7 8 14 18 19 41 45 47 46 51 59 83 78 Average Rating 35 | 5 7 8 13 18 24 36 41 44 47 50 72 60 On Entrance 29 | . 7 8 9 18 19 28 39 39 45 51 49 65 Naked Turns 5 | . 5 . . . . . . . . . . . Heaviest Build 154 | 13 52 52 54 52 77 76 125 120 131 154 47 48 Greatest Support 88 | 40 40 40 60 60 60 60 80 80 84 88 49 49 Greatest Overweight (x) 7 | 1 2 1 3 . 3 1 7 1 1 2 . 6 Average Overweight (x) 1 | . . 1 1 . 1 1 4 1 1 1 . . Largest Inventory Capacity 25 | 8 20 20 20 20 20 20 25 25 25 25 25 15 Average Capacity 21 | 7 15 20 20 20 20 20 24 25 25 25 15 13 Most Carried 25 | 4 12 14 20 20 20 20 25 25 25 25 25 15 Average Carried 19 | 3 7 12 16 19 18 19 24 24 24 24 14 12 Final Capacity 25 | 8 20 20 20 20 20 20 25 25 25 25 15 5 Final Carried 25 | 4 12 14 20 20 20 20 25 25 25 25 15 3 Class Distribution -------------------- 53% | Mutant 39% | Scavenger-Mutant 7% | Bothacker-Mutant Dominant Class ---------------- Mutant | -10/Materials Mutant | -10/Mines Mutant | -9/Materials Mutant | -9/Mines Scavenger-Mutant | -9/Exiles Mutant | -8/Mines Scavenger-Mutant | -8/Materials Scavenger-Mutant | -8/Garrison Mutant | -8/Materials Mutant | -8/Garrison Bothacker-Mutant | -7/Factory Mutant | -7/Garrison Resources | -11 -10 -10 -9 -9 -9 -8 -8 -8 -8 -8 -7 -7 ----------- Run | Yrd Mat Min Mat Min Exi Min Mat Gar Mat Gar Fac Gar Matter Collected 4907 | 222 285 195 401 78 677 254 1209 114 423 271 750 28 Remotely 106 | . . . . . . . 106 . . . . . Salvage Created 6551 | 11 471 272 441 83 551 80 1429 581 767 972 893 . Parts 402 | 5 21 31 37 5 49 5 88 32 37 44 48 . Haulers Intercepted 11 | . 2 . 2 . . . 4 . 1 . 2 . Recyclers Shooed 7 | . 1 1 3 . . . 1 . . . 1 . Parts Field Recycled . | . . . . . . . . . . . . . Retrieved Matter . | . . . . . . . . . . . . . Parts Self-Destructed . | . . . . . . . . . . . . . Prevented . | . . . . . . . . . . . . . Kills | -11 -10 -10 -9 -9 -9 -8 -8 -8 -8 -8 -7 -7 ------- Run | Yrd Mat Min Mat Min Exi Min Mat Gar Mat Gar Fac Gar Combat Hostiles Destroyed 136 | . 7 7 8 2 5 8 31 15 19 21 13 . Melee 3 | . . . . . 1 . . . . . 2 . Guns 23 | . 4 . 2 2 . 5 3 . . . 7 . Cannons 73 | . . 4 3 . . . 25 10 11 20 . . AOE 36 | . 3 3 3 . 4 3 3 5 8 . 4 . Classes Destroyed 19 | 1 4 2 4 . 3 . 2 . 1 2 . . Worker 8 | . . . 2 1 . . 2 . . . 3 . Builder 6 | . 1 1 . . . . 2 . 1 . 1 . Tunneler 5 | 1 . 4 . . . . . . . . . . Hauler 11 | . 2 . 2 . . . 4 . 1 . 2 . Recycler 6 | . . 1 1 . . . 2 . . . 2 . Mechanic 1 | . 1 . . . . . . . . . . . Operator 3 | . . . 1 . . . 1 . . . 1 . Turret 1 | . . . . . 1 . . . . . . . Watcher 4 | . . . 2 . . . 1 . 1 . . . Swarmer 35 | . . 3 3 . . 8 7 4 2 3 5 . Grunt 59 | . 7 4 2 2 . . 13 7 11 9 4 . Brawler 2 | . . . . . . . . . 1 . 1 . Duelist 1 | . . . . . . . 1 . . . . . Sentry 21 | . . . 3 . . . 7 3 4 4 . . Hunter 6 | . . . . . . . 3 1 1 . 1 . Programmer 7 | . . . . . . . . . . 4 3 . Behemoth 1 | . . . . . . . . . . 1 . . Zionite 7 | . . . . . 7 . . . . . . . Assembled 4 | . . . . . 4 . . . . . . . Best Kill Streak 10 | 1 3 3 4 2 4 4 4 8 10 5 6 . Combat Bots Only 9 | . 3 3 3 2 4 4 3 8 9 5 5 . Max Kills in Single Turn 5 | 1 1 1 2 1 3 3 2 5 3 1 3 . Gunslinging . | . . . . . . . . . . . . . Exploded 5 | . 1 1 2 . 3 3 1 5 2 . 3 . Melee 1 | . . . . . 1 . . . . . 1 . Uniques/NPCs Destroyed 5 | . . . . . 4 1 . . . . . . 8R-AWN (-9/Exiles) EX-BIN (-9/Exiles) EX-HEX (-9/Exiles) EX-DEC (-9/Exiles) ME-RLN (-8/Mines) Combat | -11 -10 -10 -9 -9 -9 -8 -8 -8 -8 -8 -7 -7 -------- Run | Yrd Mat Min Mat Min Exi Min Mat Gar Mat Gar Fac Gar Hostile Shots Fired 915 | . 31 18 17 5 15 32 174 45 79 178 96 225 Missed 265 | . 9 6 4 1 . 7 45 12 30 47 33 71 Hits 650 | . 22 12 13 4 15 25 129 33 49 131 63 154 Melee 3 | . . . . . . . 1 2 . . . . Projectile 647 | . 22 12 13 4 15 25 128 31 49 131 63 154 Critical Strikes 19 | . 1 . 1 . 1 . 4 . 4 5 3 . Part Disruptions 1 | . . . . . . 1 . . . . . . Damage Taken 8685 | . 282 122 227 58 411 210 1639 465 707 1939 1026 1599 Core 1103 | . 65 36 47 16 10 18 89 15 45 47 208 507 Absorbed by Shields 227 | . . . . . . . . . . 180 . 47 Ignored by Resistances 395 | . . . . . . . 197 24 49 125 . . Regen/Repaired (Parts) 160 | . . . . . . . 67 . 93 . . . Core Remaining (%) 75 | 100 . 59 . . . 77 . . . 64 . . Volleys Fired 524 | 2 38 21 23 6 62 7 129 32 49 87 58 10 Largest 2 | 2 2 2 2 2 1 2 2 2 2 2 2 2 Hottest 180 | 40 60 60 60 46 36 46 136 136 136 165 180 180 Shots Fired 899 | 4 65 39 43 12 64 12 245 59 86 157 99 14 Gun 309 | 4 61 . 17 12 57 11 48 . . . 89 10 Cannon 541 | . 2 36 23 . 1 . 193 58 75 153 . . Launcher 31 | . 2 3 3 . 6 1 4 1 8 . 2 1 Special 18 | . . . . . . . . . 3 4 8 3 Kinetic 462 | 4 51 36 40 12 58 11 163 . . . 87 . Thermal 364 | . . . . . . . 78 58 75 153 . . Explosive 31 | . 2 3 3 . 6 1 4 1 8 . 2 1 Electromagnetic 24 | . 12 . . . . . . . . . 2 10 Robot Hit Streak 27 | 3 7 4 16 7 6 4 27 12 8 17 9 5 Robot Miss Streak 9 | . 3 2 2 1 7 1 4 3 3 3 9 4 Penetration Max 1 | . . . . . . . . . . . 1 . Secondary Targets . | . . . . . . . . . . . . . Shots Hit Robots 597 | 3 42 20 30 9 55 11 161 32 55 99 72 8 Core Hits 305 | 2 28 16 18 4 27 8 64 24 41 34 30 9 Critical Kills 13 | . 1 . . . 3 . . . . 1 8 . Critical Parts Destroyed 33 | . . . . . 5 . 2 . . . 26 . Critical Strikes 55 | . 2 . . . 11 2 4 . . 1 35 . Meltdown 1 | . . . . . . . . . . 1 . . Destroy 45 | . 1 . . . 8 . 2 . . . 34 . Blast 2 | . . . . . . . 2 . . . . . Corrupt 1 | . 1 . . . . . . . . . . . Sever 6 | . . . . . 3 2 . . . . 1 . Melee Attacks 86 | . . . 1 . 38 3 . . 1 . 41 2 Impact 1 | . . . 1 . . . . . . . . . Slashing 85 | . . . . . 38 3 . . 1 . 41 2 Piercing . | . . . . . . . . . . . . . Sneak Attacks 12 | . . . . . 2 . . . . . 10 . Combat Hostiles 1 | . . . . . . . . . . . 1 . Follow-up Attacks . | . . . . . . . . . . . . . Damage Inflicted 16352 | 19 530 601 781 152 2032 465 3420 1010 1834 2564 2613 331 Guns 3044 | 18 426 . 221 131 350 127 528 . . . 1100 143 Cannons 7410 | . 15 371 245 . . . 2549 658 1008 2564 . . Explosions 3520 | . 73 230 313 . 362 249 343 352 823 . 587 188 Melee 2335 | . . . . . 1320 89 . . . . 926 . Ramming 43 | 1 16 . 2 21 . . . . 3 . . . Kinetic 4924 | 18 294 371 466 131 350 127 2079 . . . 1088 . Thermal 5403 | . 20 . 155 . . . 998 658 1008 2564 . . Explosive 3345 | . 53 230 158 . 362 249 343 352 823 . 587 188 Electromagnetic 302 | . 147 . . . . . . . . . 12 143 Impact . | . . . . . . . . . . . . . Slashing 2335 | . . . . . 1320 89 . . . . 926 . Piercing . | . . . . . . . . . . . . . Highest Corruption 6 | . . . 4 4 4 5 . . . 6 2 2 Average Corruption 3 | . . . 3 4 4 4 . . . 3 1 2 Corruption Purged . | . . . . . . . . . . . . . Corruption Blocked . | . . . . . . . . . . . . . Effects 121 | . . . 12 18 39 15 . . . 33 2 2 Message Errors 25 | . . . . 6 8 2 . . . 9 . . Matter Fused 23 | . . . 2 3 11 1 . . . 5 . 1 Heat Flow Errors 16 | . . . 3 2 2 3 . . . 5 1 . Energy Discharges 11 | . . . 1 1 3 4 . . . 2 . . Parts Rejected 1 | . . . . . . . . . . 1 . . Parts Fused 1 | . . . . . 1 . . . . . . . Data Loss (minor) 22 | . . . 4 3 7 4 . . . 3 . 1 Data Loss (major) 7 | . . . 1 1 4 . . . . 1 . . Misfires 6 | . . . 1 . 2 . . . . 2 1 . Alerts 4 | . . . . 2 1 . . . . 1 . . Weapon Failures 5 | . . . . . . 1 . . . 4 . . Overload Shots . | . . . . . . . . . . . . . Overflow Damage 492 | . . . 22 . 78 76 33 21 . 32 230 . Projectiles 40 | . . . . . . . 8 . . 32 . . Explosions 238 | . . . 22 . 44 76 25 21 . . 50 . Melee 214 | . . . . . 34 . . . . . 180 . Knockbacks 18 | . . 2 1 1 . . 14 . . . . . Impact 1 | . . . . 1 . . . . . . . . Kinetic 17 | . . 2 1 . . . 14 . . . . . Secondary . | . . . . . . . . . . . . . Self-Inflicted Damage 300 | . . . 81 . 56 56 43 13 . . . 51 Shots 7 | . . . 2 . 1 1 1 1 . . . 1 Rammed 8 | 1 3 . . 3 . . . . 1 . . . Targets Rammed 10 | 1 3 . 1 4 . . . . 1 . . . Kicked . | . . . . . . . . . . . . . Crushed 2 | . . . 1 1 . . . . . . . . Highest Temperature 390 | . 82 15 251 221 205 149 276 11 372 328 120 390 Average Temperature 74 | . 39 11 76 87 64 61 65 2 93 77 31 211 Received Heat Transfer 2365 | . 177 30 60 33 60 . 531 189 342 670 189 84 Effects 4 | . . . . . . . 2 . . . . 2 Shutdowns 1 | . . . . . . . . . . . . 1 Energy Bleed 1 | . . . . . . . . . . . . 1 Interference 2 | . . . . . . . 2 . . . . . Siege Activations . | . . . . . . . . . . . . . Martial Activations . | . . . . . . . . . . . . . Shielding Activations . | . . . . . . . . . . . . . Robots Disrupted 1 | . 1 . . . . . . . . . . . Combat Hostiles 1 | . 1 . . . . . . . . . . . Robots Corrupted . | . . . . . . . . . . . . . Combat Hostiles . | . . . . . . . . . . . . . Parts Fried . | . . . . . . . . . . . . . Impact Corruptions . | . . . . . . . . . . . . . Robots Melted 1 | . . . . . . . . . . 1 . . Combat Hostiles 1 | . . . . . . . . . . 1 . . Parts Melted 23 | . . . . . . . 4 4 4 10 1 . Heat Transferred 8554 | . . . 100 . . . 1813 1184 1813 3644 . . Parts Sabotaged . | . . . . . . . . . . . . . Parts Stolen . | . . . . . . . . . . . . . Parts Stripped . | . . . . . . . . . . . . . Power Chain Reactions 1 | . 1 . . . . . . . . . . . Alert | -11 -10 -10 -9 -9 -9 -8 -8 -8 -8 -8 -7 -7 ------- Run | Yrd Mat Min Mat Min Exi Min Mat Gar Mat Gar Fac Gar Maximum Alert Level 3 | . . . 1 . . . 1 2 2 3 2 2 Low Security (%) 54 | 100 100 100 99 100 . 100 74 . 27 . . . Level 1 22 | . . . . . . . 25 41 54 20 32 93 Level 2 18 | . . . . . . . . 58 18 44 67 6 Level 3 4 | . . . . . . . . . . 35 . . Level 4 . | . . . . . . . . . . . . . Level 5 . | . . . . . . . . . . . . . High Security . | . . . . . . . . . . . . . Max Security . | . . . . . . . . . . . . . Peak Influence 1008 | 5 98 84 206 73 . 95 373 642 482 1008 572 413 Initial 529 | . . . . 63 . . . 235 312 280 529 343 Average 228 | . 24 11 93 12 . 40 121 470 259 618 438 345 Influence Increases 4911 | 5 278 214 389 55 . 290 1038 417 658 838 519 210 Destroy 0b10 Robot/C 2660 | . 140 140 160 40 . 180 620 300 380 420 260 20 Destroy 0b10 Robot/NC 220 | 5 20 30 40 5 . . 60 . 15 . 45 . Destroy Leader 550 | . 44 30 48 10 . 30 170 10 114 30 64 . Allied During Kill 17 | . . . . . . 10 . . . . 4 3 Successful Hack 153 | . 18 . . . . . 16 24 38 28 29 . Disable Machine 330 | . 30 . 75 . . 15 60 15 75 15 30 15 Anti-Garrison Action 350 | . . . . . . . . 50 . 300 . . Destroy Structure 301 | . 11 14 36 . . 10 82 18 36 30 42 22 Partial Spotted 30 | . . . . . . . . . . 15 15 . Lose Combat Pursuer 300 | . 15 . 30 . . 45 30 . . . 30 150 Influence Decreases 4498 | 5 278 214 226 218 . 290 675 138 868 262 1037 287 Entered New Map 1336 | . . . . 100 . . . 128 330 152 479 147 Time Decay 2578 | 5 258 214 226 118 . 270 511 . 518 . 458 . Lost Part 264 | . 10 . . . . 20 14 10 20 70 20 100 Lost Ally 170 | . 10 . . . . . . . . 40 80 40 Purge Threat 150 | . . . . . . . 150 . . . . . Squads Dispatched 22 | . 2 . 1 . . . 4 . 2 . 13 . Investigation 7 | . 2 . . . . . . . . . 5 . Extermination 3 | . . . . . . . . . . . 3 . Reinforcement 9 | . . . 1 . . . 4 . 2 . 2 . Assault 1 | . . . . . . . . . . . 1 . Garrison 2 | . . . . . . . . . . . 2 . Intercept . | . . . . . . . . . . . . . Searches Triggered . | . . . . . . . . . . . . . Construction Impeded 1 | . . . . . . . . . . . 1 . Haulers Reinforced . | . . . . . . . . . . . . . Active Scanning Responses . | . . . . . . . . . . . . . Cargo Convoy Interrupts . | . . . . . . . . . . . . . Stealth | -11 -10 -10 -9 -9 -9 -8 -8 -8 -8 -8 -7 -7 --------- Run | Yrd Mat Min Mat Min Exi Min Mat Gar Mat Gar Fac Gar Distress Signals 11 | . 1 . 4 . . . 3 . 3 . . . Communications Jammed . | . . . . . . . . . . . . . Distress Signals . | . . . . . . . . . . . . . Times Spotted 260 | . 20 7 15 2 21 7 52 16 28 22 48 22 Peak Tracking Total 10 | . 4 2 5 2 9 2 5 7 8 5 9 10 Tactical Retreats 21 | . 1 . 2 . 6 3 2 . . . 2 5 Traps | -11 -10 -10 -9 -9 -9 -8 -8 -8 -8 -8 -7 -7 ------- Run | Yrd Mat Min Mat Min Exi Min Mat Gar Mat Gar Fac Gar Traps Triggered 21 | . 2 . 2 . . . . 1 . 10 5 1 Indirectly . | . . . . . . . . . . . . . Trap Hack Attempts . | . . . . . . . . . . . . . Triggered . | . . . . . . . . . . . . . Disarmed . | . . . . . . . . . . . . . Reprogrammed . | . . . . . . . . . . . . . Reused . | . . . . . . . . . . . . . Traps Extracted . | . . . . . . . . . . . . . Installed . | . . . . . . . . . . . . . Triggered . | . . . . . . . . . . . . . Machines | -11 -10 -10 -9 -9 -9 -8 -8 -8 -8 -8 -7 -7 ---------- Run | Yrd Mat Min Mat Min Exi Min Mat Gar Mat Gar Fac Gar Machines Disabled 39 | . 2 . 5 . 12 1 4 2 5 5 2 1 Max in Single Turn 3 | . 1 . 3 . 2 1 1 1 1 1 1 1 Garrison Relay 5 | . . . . . . . . 1 . 4 . . Machines Repaired . | . . . . . . . . . . . . . Machines Dismantled . | . . . . . . . . . . . . . Machines Sabotaged . | . . . . . . . . . . . . . Overloaded Fab Kills . | . . . . . . . . . . . . . Hacking | -11 -10 -10 -9 -9 -9 -8 -8 -8 -8 -8 -7 -7 --------- Run | Yrd Mat Min Mat Min Exi Min Mat Gar Mat Gar Fac Gar Machines Accessed 45 | . 6 1 4 1 1 . 10 2 6 2 11 1 Terminals 27 | . 4 . 4 . . . 6 2 4 2 4 1 Fabricators 5 | . . . . . . . . . . . 5 . Repair Stations 3 | . 1 . . . . . 1 . 1 . . . Recycling Units 1 | . 1 . . . . . . . . . . . Scanalyzers 2 | . . . . . . . 2 . . . . . Garrison Access 4 | . . . . . . . 1 . 1 . 2 . Total Hacks 129 | . 15 1 7 1 1 . 51 4 10 4 34 1 Successful 71 | . 7 1 1 1 1 . 34 2 7 2 15 . Failed 57 | . 7 . 6 . . . 17 2 3 2 19 1 Catastrophic 14 | . 1 . 1 . . . 2 1 2 1 5 1 Database Lockouts 1 | . 1 . . . . . . . . . . . Manual 60 | . 10 . 7 . . . 19 1 1 1 20 1 Terminals 67 | . 11 . 7 . . . 20 4 7 4 13 1 Fabricators 18 | . . . . . . . . . . . 18 . Repair Stations 8 | . 2 . . . . . 4 . 2 . . . Recycling Units 2 | . 2 . . . . . . . . . . . Scanalyzers 26 | . . . . . . . 26 . . . . . Garrison Access 5 | . . . . . . . 1 . 1 . 3 . Terminal Hacks 19 | . 1 1 . 1 1 . 6 1 4 2 2 . Record 1 | . . . . . 1 . . . . . . . Robot Analysis 1 | . 1 . . . . . . . . . . . Open Door 2 | . . 1 . 1 . . . . . . . . Emergency Access Points 1 | . . . . . . . . . . 1 . . Terminal Index 1 | . . . . . . . . . . . 1 . Garrison Index 1 | . . . . . . . . . . . 1 . Unreport Threat 2 | . . . . . . . 2 . . . . . Locate Traps 1 | . . . . . . . 1 . . . . . Hauler Manifests 1 | . . . . . . . . . 1 . . . Registered Components 1 | . . . . . . . . . 1 . . . Registered Prototypes 1 | . . . . . . . . . 1 . . . Zone Layout 4 | . . . . . . . 3 . 1 . . . Garrison Registry 1 | . . . . . . . . 1 . . . . Patrol Navigation 1 | . . . . . . . . . . 1 . . Fabricator Hacks 8 | . . . . . . . . . . . 8 . Network Status 1 | . . . . . . . . . . . 1 . Load Schematic 5 | . . . . . . . . . . . 5 . Build 2 | . . . . . . . . . . . 2 . Repair Station Hacks 7 | . 1 . . . . . 4 . 2 . . . Scan Component 4 | . 1 . . . . . 2 . 1 . . . Repair 3 | . . . . . . . 2 . 1 . . . Recycling Unit Hacks 1 | . 1 . . . . . . . . . . . Retrieve Components 1 | . 1 . . . . . . . . . . . Scanalyzer 21 | . . . . . . . 21 . . . . . Insert Component 10 | . . . . . . . 10 . . . . . Analyze 11 | . . . . . . . 11 . . . . . Garrison Access Hacks 3 | . . . . . . . 1 . 1 . 1 . Unlock Access 3 | . . . . . . . 1 . 1 . 1 . Unauthorized Hacks 12 | . 4 . 1 . . . 2 1 . . 4 . Terminals 9 | . 4 . 1 . . . 2 1 . . 1 . Assimilate 2 | . 2 . . . . . . . . . . . Botnet 5 | . 1 . . . . . 2 1 . . 1 . Operators 2 | . 1 . 1 . . . . . . . . . Fabricators 2 | . . . . . . . . . . . 2 . Recompile 2 | . . . . . . . . . . . 2 . Repair Stations . | . . . . . . . . . . . . . Recycling Units . | . . . . . . . . . . . . . Scanalyzers . | . . . . . . . . . . . . . Garrison Access 1 | . . . . . . . . . . . 1 . Reprogram 1 | . . . . . . . . . . . 1 . Data Cores Recovered 1 | . . . . . . . . . . . 1 . Used . | . . . . . . . . . . . . . Hacking Detections 36 | . 5 . 4 . . . 9 2 5 2 8 1 Full Trace Events 3 | . . . . . . . 1 . . . 2 . Feedback Events . | . . . . . . . . . . . . . Feedback Blocked . | . . . . . . . . . . . . . Robot Schematics Acquired . | . . . . . . . . . . . . . Robots Built . | . . . . . . . . . . . . . Authchips . | . . . . . . . . . . . . . Time . | . . . . . . . . . . . . . Total Robot Build Rating . | . . . . . . . . . . . . . Part Schematics Acquired 6 | . . . . . . . 6 . . . . . Parts Built 4 | . . . . . . . . . . . 4 . Authchips 2 | . . . . . . . . . . . 2 . Time 84 | . . . . . . . . . . . 84 . Total Part Build Rating 32 | . . . . . . . . . . . 32 . Parts Repaired 3 | . . . . . . . 2 . 1 . . . Time 158 | . . . . . . . 124 . 34 . . . Parts Recycled . | . . . . . . . . . . . . . Recycled Matter . | . . . . . . . . . . . . . Retrieved Matter . | . . . . . . . . . . . . . Retrieved Components 5 | . 5 . . . . . . . . . . . Parts Scanalyzed 6 | . . . . . . . 6 . . . . . Part Schematics Acquired 6 | . . . . . . . 6 . . . . . Parts Damaged . | . . . . . . . . . . . . . Bothacking | -11 -10 -10 -9 -9 -9 -8 -8 -8 -8 -8 -7 -7 ------------ Run | Yrd Mat Min Mat Min Exi Min Mat Gar Mat Gar Fac Gar Used RIF Installer 3 | . . . . . . . . 1 . 2 . . Watcher Feeds 1 | . . . . . . . . . . 1 . . Autooverride 1 | . . . . . . . . . . 1 . . Robots Hacked 13 | . . . . . . . . . 2 2 8 1 Non-combat 2 | . . . . . . . . . 2 . . . Combat 11 | . . . . . . . . . . 2 8 1 Autooverrided 1 | . . . . . . . . . . . 1 . Robot Hacks Applied 13 | . . . . . . . . . 2 2 8 1 link_fov 1 | . . . . . . . . . 1 . . . wipe_record 1 | . . . . . . . . . . . 1 . go_dormant 1 | . . . . . . . . . . . 1 . overwrite_iff 6 | . . . . . . . . . . 1 5 . formatsys_high 4 | . . . . . . . . . 1 1 1 1 Relay Couplers Released 18 | . . . . . . . . 5 . 13 . . Machine Destruction 18 | . . . . . . . . 5 . 13 . . Attached 6 | . . . . . . . . . 1 1 4 . Fabnet Peak Effective % . | . . . . . . . . . . . . . Robots Rewired . | . . . . . . . . . . . . . Allies Hacked . | . . . . . . . . . . . . . Hacks Repelled . | . . . . . . . . . . . . . Allies | -11 -10 -10 -9 -9 -9 -8 -8 -8 -8 -8 -7 -7 -------- Run | Yrd Mat Min Mat Min Exi Min Mat Gar Mat Gar Fac Gar Total Allies 14 | . 1 . . . . . . . 1 2 9 1 Largest Group 2 | . 1 . . . . . . . 1 2 2 . Highest-Rated Group 32 | . 10 . . . . . . . 26 30 32 . Highest-Rated Ally 32 | . 10 . . . . . . . 26 26 32 . Total Orders 8 | . . . . . 4 3 . . . . . 1 RETURN 8 | . . . . . 4 3 . . . . . 1 Ally Attacks 125 | . . . . . 41 35 . . . 4 24 21 Total Damage 721 | . . . . . 212 117 . . . 101 225 66 Kills 4 | . . . . . 1 2 . . . . . 1 Allies Corrupted . | . . . . . . . . . . . . . Allies Melted . | . . . . . . . . . . . . . Intel | -11 -10 -10 -9 -9 -9 -8 -8 -8 -8 -8 -7 -7 ------- Run | Yrd Mat Min Mat Min Exi Min Mat Gar Mat Gar Fac Gar Active Infowar (turns) 7532 | 55 919 1354 648 798 306 660 1149 51 548 260 737 47 Sensors 151 | . . . . . 1 . . . . . 150 . Seismic 7381 | 55 919 1354 648 798 305 660 1149 51 548 260 587 47 Robot Analysis Total 1 | . 1 . . . . . . . . . . . Derelict Logs Recovered 2 | . . 1 . 1 . . . . . . . . Drone Launches 36 | . . . . . 19 10 . . . . . 7 Drone Recoveries 35 | . . . . . 19 10 . . . . . 6 Exploration | -11 -10 -10 -9 -9 -9 -8 -8 -8 -8 -8 -7 -7 ------------- Run | Yrd Mat Min Mat Min Exi Min Mat Gar Mat Gar Fac Gar Turns Passed 14641 | 111 924 1356 721 815 1785 660 2789 1070 1423 1604 1153 230 Spaces Moved 6587 | 60 418 536 330 488 797 232 983 399 476 518 1203 147 Core 69 | 7 11 . . . . . . . . . . 51 Treads 4139 | 53 306 536 227 488 582 232 322 399 476 518 . . Legs . | . . . . . . . . . . . . . Wheels 1080 | . 101 . 103 . 215 . 661 . . . . . Hover 1299 | . . . . . . . . . . . 1203 96 Flight . | . . . . . . . . . . . . . Fastest Speed 50 | 50 50 240 145 160 145 240 145 240 235 235 55 50 Average Speed 177 | 152 186 240 175 160 179 240 215 240 236 243 55 67 Slowest Speed 400 | 160 320 240 240 160 240 240 400 240 240 320 55 350 Overloaded Moves . | . . . . . . . . . . . . . Propulsion Burnouts . | . . . . . . . . . . . . . Robots Hopped . | . . . . . . . . . . . . . Potential Cave-ins . | . . . . . . . . . . . . . Cave-ins Triggered . | . . . . . . . . . . . . . Exploration Rate (%) 57 | 4 63 97 34 96 76 49 76 59 48 71 43 26 Regions Visited 12 Branch Regions 4 Pre-discovered Areas 3 | . . . . 2 1 . . . . . . . Known Exits Taken 3 | . . . . . . . 1 . 1 . 1 . Unknown Exits Taken 7 | 1 1 1 1 1 1 1 . . . . . . Scrap Searched 2 | . . 1 . 1 . . . . . . . . Spaces Dug 80 | . 6 . 8 . . 12 4 8 1 . 26 15 Terrain Destroyed 328 | . 11 16 39 . 45 12 81 8 40 . 61 15 Melee 28 | . . . 1 . . . . . 1 . 26 . Projectile 52 | . . . . . 16 . 20 . . . 16 . AOE 244 | . 11 16 38 . 27 12 61 8 39 . 17 15 Terrain Rammed . | . . . . . . . . . . . . . Walls Destroyed . | . . . . . . . . . . . . . Machines Disabled . | . . . . . . . . . . . . . Actions | -11 -10 -10 -9 -9 -9 -8 -8 -8 -8 -8 -7 -7 --------- Run | Yrd Mat Min Mat Min Exi Min Mat Gar Mat Gar Fac Gar Total 8461 | 73 498 566 433 509 1038 315 1410 452 682 705 1522 258 Wait 750 | . 16 4 25 4 76 45 215 8 99 52 130 76 Move 6578 | 59 417 535 329 487 796 231 983 398 476 517 1203 147 Hop . | . . . . . . . . . . . . . Pick Up 89 | 4 5 1 14 3 14 6 14 1 7 8 10 2 Fast Attach 59 | 7 9 1 7 . 3 1 14 2 6 4 5 . Attach 47 | . 1 . 3 . 7 2 3 1 3 8 15 4 Detach 28 | . 2 1 8 . 3 . 3 . 1 1 9 . Swap 146 | . 7 3 9 2 17 13 25 6 23 12 23 6 Drop 114 | . . . 13 3 22 7 24 4 16 9 12 4 Fire 524 | 2 38 21 23 6 62 7 129 32 49 87 58 10 Melee 86 | . . . 1 . 38 3 . . 1 . 41 2 Ram . | . . . . . . . . . . . . . Kick . | . . . . . . . . . . . . . Crush 10 | 1 3 . 1 4 . . . . 1 . . . Escape Stasis 29 | . . . . . . . . . . 7 15 7 Rewire 1 | . . . . . . . . . . . 1 . Trap . | . . . . . . . . . . . . . Miscellaneous . | . . . . . . . . . . . . . Route ------- -11/Scrapyard -10/Materials (discovered 2 exits: *Mat / *Min) -10/Mines (discovered 2 exits: *Mat x2) -9/Materials -9/Mines (discovered 4 exits: *Mat x2 / *Exi / [*Zio]) -9/Exiles (discovered 2 exits: [*Min x2]) -8/Mines -8/Materials (discovered 3 exits: *Fac x2 / Gar) -8/Garrison (discovered 3 exits: *Mat x3) -8/Materials (discovered 2 exits: Fac / Gar) -8/Garrison (discovered 2 exits: *Fac x2) -7/Factory (discovered 5 exits: [*Fac x2] / *Sto / [*Low] / Gar) -7/Garrison History --------- Turn | Location | Event 27 | -11/Scrapyard | Discovered new exit (range 16) 112 | -11/Scrapyard | Entered Materials 138 | -10/Materials | Central database locked down 190 | -10/Materials | Released all parts (7) 193 | -10/Materials | Discovered new exit (range 10) 306 | -10/Materials | Build established: Mutant 711 | -10/Materials | Discovered new exit (range 7) 1036 | -10/Materials | Entered Mines 1041 | -10/Mines | Discovered new exit (range 8) 1793 | -10/Mines | Found the Drone Emporium 1804 | -10/Mines | Learned Materials stockpile data 1810 | -10/Mines | Found Prototype Device 1810 | -10/Mines | Identified Thief Drone Bay 1853 | -10/Mines | Discovered new exit (range 13) 2115 | -10/Mines | Received a Rocket Launcher from a helpful Derelict 2392 | -10/Mines | Entered Materials 2392 | -9/Materials | Evolved 2 slots: Propulsion x1, Utility x1 2775 | -9/Materials | Discovered new exit (range 13) 3113 | -9/Materials | Entered Mines 3114 | -9/Mines | A Derelict revealed a hidden shortcut to a safe place 3255 | -9/Mines | Discovered new exit (range 9) 3263 | -9/Mines | Found a damaged Exp. Sensor Array with a note attached 3267 | -9/Mines | Found Prototype Device 3306 | -9/Mines | Learned location of Storage (-7) 3610 | -9/Mines | Learned location of Zion (-7) 3653 | -9/Mines | Met a Derelict who couldn't figure out how to use a Trap Extractor 3676 | -9/Mines | Discovered new exit (range 14) 3862 | -9/Mines | A weapon hastily lodged in a ceiling crevice suddenly fell to the ground 3921 | -9/Mines | Deemed a non-threat by the Exiles lab entrance 3921 | -9/Mines | Discovered new exit (range 5) 3928 | -9/Mines | Entered Exiles 3953 | -9/Exiles | Discovered new exit (range 15) 3973 | -9/Exiles | Met 8R-AWN 3995 | -9/Exiles | Met EX-HEX 4081 | -9/Exiles | Met EX-DEC 4129 | -9/Exiles | Met EX-BIN 4211 | -9/Exiles | Discovered new exit (range 14) 4520 | -9/Exiles | Attacked by the Exiles 4564 | -9/Exiles | Build established: Scavenger-Mutant 4663 | -9/Exiles | Destroyed 8R-AWN 4671 | -9/Exiles | Found Prototype Processor 4679 | -9/Exiles | Found AS-neutralizer No. 17b 4779 | -9/Exiles | Found 8R-AWN's Boregun 5154 | -9/Exiles | Destroyed EX-BIN 5173 | -9/Exiles | Destroyed EX-HEX 5202 | -9/Exiles | Destroyed EX-DEC 5693 | -9/Exiles | Identified Exp. Sensor Array 5713 | -9/Exiles | Entered Mines 5750 | -8/Mines | ME-RLN came to Exiles' defense 5870 | -8/Mines | Discovered new exit (range 17) 5988 | -8/Mines | Build established: Mutant 6226 | -8/Mines | Allies destroyed ME-RLN 6263 | -8/Mines | Found Prototype Special Weapon 6263 | -8/Mines | Identified ME-RLN's Wand 6274 | -8/Mines | Found Prototype Hackware 6373 | -8/Mines | Entered Materials 6373 | -8/Materials | Evolved 2 slots: Propulsion x1, Utility x1 6685 | -8/Materials | Identified System Mapper 7103 | -8/Materials | Build established: Scavenger-Mutant 7307 | -8/Materials | Repaired Imp. Arc Thrower 7370 | -8/Materials | Repaired Imp. Arc Thrower 7656 | -8/Materials | Discovered new exit (range 8) 8608 | -8/Materials | Discovered new exit (range 9) 9162 | -8/Materials | Identified exit to Garrison 9162 | -8/Materials | Entered Garrison 9214 | -8/Garrison | Triggered checkpoint 9273 | -8/Garrison | Garrison Relay disabled 9573 | -8/Garrison | Triggered checkpoint 9636 | -8/Garrison | Destroyed 8 combat bots 9776 | -8/Garrison | Discovered new exit (range 8) 9853 | -8/Garrison | Discovered new exit (range 11) 9853 | -8/Garrison | Discovered new exit (range 90) 9853 | -8/Garrison | Discovered new exit (range 69) 10136 | -8/Garrison | Installed Relay Interface Framework 10232 | -8/Garrison | Entered Materials 11041 | -8/Materials | Build established: Mutant 11122 | -8/Materials | Repaired Cmb. Antigrav System 11426 | -8/Materials | Destroyed 9 combat bots 11582 | -8/Materials | Discovered new exit (range 11) 11655 | -8/Materials | Identified exit to Garrison 11655 | -8/Materials | Entered Garrison 11655 | -8/Garrison | Accompanied by 1 ally 11688 | -8/Garrison | Expanded RIF knowledge: Watcher Feeds 11792 | -8/Garrison | Garrison Relay disabled 11915 | -8/Garrison | Triggered checkpoint 11937 | -8/Garrison | Triggered checkpoint 11957 | -8/Garrison | P-60 Hacker assimilated allied Administrator 3a 12147 | -8/Garrison | Triggered checkpoint 12191 | -8/Garrison | Discovered new exit (range 11) 12254 | -8/Garrison | Garrison Relay disabled 12260 | -8/Garrison | Triggered checkpoint 12552 | -8/Garrison | Lost 4 parts (1p1n2u) 12596 | -8/Garrison | Spotted B-75 Beast 12634 | -8/Garrison | Destroyed B-75 Beast 12682 | -8/Garrison | Garrison Relay disabled 12785 | -8/Garrison | Triggered checkpoint 12816 | -8/Garrison | Garrison Relay disabled 12945 | -8/Garrison | Discovered new exit (range 5) 13158 | -8/Garrison | Build established: Bothacker-Mutant 13180 | -8/Garrison | Expanded RIF knowledge: Autooverride 13259 | -8/Garrison | Entered Factory 13259 | -7/Factory | Evolved 2 slots: Utility x2 13278 | -7/Factory | Identified Exp. Targeting Computer 13287 | -7/Factory | Garrison activated, responded to threat 13351 | -7/Factory | Found 8R-AWN's Boregun 13530 | -7/Factory | Discovered new exit (range 20) 13590 | -7/Factory | Identified exit to Storage 13608 | -7/Factory | Discovered new exit (range 16) 13637 | -7/Factory | Discovered new exit (range 16) 13659 | -7/Factory | First assault squad dispatched 14173 | -7/Factory | Fabricated Cmb. Antigrav System? 14226 | -7/Factory | Fabricated Cmb. Antigrav System? 14293 | -7/Factory | Build established: Mutant 14351 | -7/Factory | Garrison activated, responded to threat 14360 | -7/Factory | Discovered new exit (range 14) 14412 | -7/Factory | Identified exit to Garrison 14412 | -7/Factory | Entered Garrison 14519 | -7/Garrison | Triggered checkpoint 14538 | -7/Garrison | Triggered checkpoint 14591 | -7/Garrison | Core integrity fell below 50% 14623 | -7/Garrison | Core integrity fell below 20% 14624 | -7/Garrison | Lost 9 parts (1p2n3u3w) 14626 | -7/Garrison | Triggered checkpoint 14642 | -7/Garrison | Destroyed by S-27 Virus with Autogun Last Messages --------------- 14583_ Thief Drone delivers Lgt. Treads. 14583_ Thief Drone retrieved by Thief Drone Bay (repair cost: 15). 14584_ S-27 Virus IFF system glitched. 14586_ Thief Drone Bay destroyed. 14586_ Imp. Arc Thrower destroyed. 14587_ >> Lost connection to Thief Drone. 14588_ Acquired 28 matter. 14590_ Destroyed VTOL Module. 14590_ Garrison Terminal disabled. 14592_ Hvy. Missile Launcher destroyed. 14593_ Relay Coupler [NC] destroyed. 14593_ Lyr. Light Armor Plating destroyed. 14601_ Dropped Lrg. Storage Unit. 14602_ Dropped Relay Coupler [Sentry]. 14602_ Dropped Assault Rifle. 14603_ Acquired System Mapper. 14604_ System corrupted: Component data lost. 14604_ Acquired ME-RLN's Wand. 14606_ Dropped Exp. Energy Well. 14633_ Cmb. Antigrav System destroyed. Map ----- +----------------------------------------------------+ | !! #????????????????????????????????????????????? | | ![#????????????????????????????????????????????? | | #????????????????????????????????????????????? | | #????????????????????????????????????????????? | | ## #????????????????????????????????????????????? | | ?# #????????????????????????????????????????????? | | ?# #????????????????????????????????????????????? | | ## #????????????????????????????????????????????? | | #??????"#????????????????????????????????????? | | #??????"#####????????????????????????????????? | | #??####"""""#????????????????????????????????? | | # #??# " "#????????????????????????????????? | | # #??# "#????????????????????????????????? | | # #### " "#????????????????????????????????? | | # + """ ""#????????????????????????????????? | | # #### " #?????????????????????????????????? | | # #??# #?????????????????????????????????? | | # #??# #??????######?????????????????????? | | # #??#### ####??????# ?????????????????????? | | # ####### #######???# ??????????????????????? | | # # #???# ??????????????????????? | | # # #???# #??????????????????????? | | # ####### ##### #???# #??????????????????????? | | # ??????# #???# #???# #??????????????????????? | | # ??????# #???# #???# #??????????????????????? | | # ??????# #???# #???# @#??????????????????????? | | # ??????# #???#"##### #??????????????????????? | | # ??????# #???# ##ss #??????????????????????? | | # ??????####### ##ss #??????????????????????? | | ? ? s #??????????????????????? | | ????? s #??????????????????????? | | ????? #??????????????????????? | | ?????####### ## ## #??????????????????????? | | ???????????# ?# ## #??????????????????????? | | ???????????" ? "??????????????????????? | | ???????????" "??????????????????????? | | ???????????" ^ "??????????????????????? | | ???????????" ^ "??????????????????????? | | ???????????# ## ## #??????????????????????? | | ???????????# ?# ## #??????????????????????? | | ???????????# ?? ? s#??????????????????????? | | ???????????# ?? ? +??????????????????????? | | ??????????????? ? #??????????????????????? | | ????????????????#""""#? ##??????????????????????? | | ??????????????????????? ????????????????????????? | | ?????????????????????????????????????????????????? | | ?????????????????????????????????????????????????? | | ?????????????????????????????????????????????????? | | ?????????????????????????????????????????????????? | | ?????????????????????????????????????????????????? | +----------------------------------------------------+ Best States ------------- Heat Dissipation 69 Coolant Potential 65 Energy Generation 23 Energy Capacity 750 Matter Stores 300 Matter Capacity 300 Sight Range 16 Robot Scan Range 20 Terrain Scan Density 10 Armor Coverage 450 Resistance: KI 30 Evasion (%) 54 Targeting Accuracy 12 Recoil Reduction 4 Offensive Hacking 10 Relay Coupler Types 2 Relay Coupler Value 46 Authchip Count 2 Item Schematics ----------------- Cmb. Antigrav System | -8/Materials | Scanalyzed Cld. Antigrav System | -8/Materials | Scanalyzed Imp. Arc Thrower | -8/Materials | Scanalyzed Exp. Sensor Array | -8/Materials | Scanalyzed Exp. Cooling System | -8/Materials | Scanalyzed Gravity Neutralizer | -8/Materials | Scanalyzed Robot Schematics ------------------ None Fabricated ------------ Cmb. Antigrav System | x2 | -7/Factory | Authchip Cmb. Antigrav System | x2 | -7/Factory | Authchip Repaired ---------- Imp. Arc Thrower | 28% | -8/Materials Imp. Arc Thrower | 60% | -8/Materials Cmb. Antigrav System | 55% | -8/Materials Alien Tech Used ----------------- None Achievements -------------- None Challenges ------------ None Game ------ Seed PortableBombProcessor Manual? 0 Play Time 01:45:34 Cumulative 835.2 hours Start 2025.08.02 @ 17:45:22 End 2025.08.03 @ 11:03:55 Sessions 3 Manual Loads 0 Difficulty Rogue Special Mode None Game No. 781 Rogue 694 Adventurer 87 Explorer 0 Win Type - Total 55 Types 9/3/31/2/1/1/4/1/1/2 Lore% 97 Gallery% 93 Achievement% 82 Wizard Run 0 Options --------- Layout 0 ASCII 0 Keyboard 1 Movement Numpad Keybinds 0 Fullscreen 2 Font 18/SmallcapsGlow Map View 76x50 Zoom Use 0% Tactical HUD 1 Map Filters NONE Filters NONE Steam 1 RUN: de01b5c7-e234-4937-8224-ee0ee8abe093